[Event "Croatian 1A League 2022"]
[Site "Porec"]
[Date "2022.10.01"]
[Round "8.9"]
[White "Muse, Drazen"]
[Black "Bosiocic, Marin"]
[Result "0-1"]
[ECO "A06"]
[WhiteElo "2311"]
[BlackElo "2548"]
[Annotator "TA"]
[PlyCount "140"]
[EventDate "2022.09.24"]
[EventType "team-tourn"]
[EventCountry "CRO"]
[SourceTitle "playchess.com"]
[Source "ChessBase"]
[SourceQuality "1"]
[TimeControl "40/5400+30:1800+30"]

{[%evp 9,140,0,7,0,19,27,35,4,14,0,0,0,10,0,0,-9,-14,-13,-9,-53,-53,-53,-53,-53,-53,-45,-45,-45,-45,-45,-45,-45,-45,-45,-45,-56,-45,-53,-35,-57,-57,-52,-64,-57,-45,-62,-59,-83,-83,-84,-84,-90,-74,-74,-57,-74,-82,-75,-46,-53,-51,-86,-62,-89,-75,-96,-40,-53,-25,-77,-47,-60,-60,-121,-129,-258,-254,-250,-229,-221,-229,-208,-221,-256,-249,-259,-256,-278,-267,-339,-263,-349,-351,-340,-332,-393,-365,-537,-541,-493,-528,-524,-508,-489,-437,-776,-742,-702,-636,-29964,-29960,-29958,-29958,-29973,-29974,-29976,-29962,-29977,-29978,-29978,-29978,-29984,-29985,-29985,-29986,-29988,-29989,-29996,-29997,-29997,-29997,-29998,-29999]} 1. Nf3 {[%emt 0:03:17]} d5 {[%emt 0:00:29]} 2. b3 {[%emt 0:00:16]} Bg4 {[%emt 0:00:55]} 3. Bb2 {[%emt 0:01:16]} Nd7 {[%emt 0:01:09]} 4. d4 {[%emt 0:03:16]} e6 {[%emt 0:01:41]} 5. Nbd2 {[%emt 0:01:02]} c6 {[%emt 0:03:58]} 6. g3 {[%emt 0:05:46] [#] A06: Réti Opening: 1 Nf3 d5.} Bxf3 $146 {[%emt 0:04:18]} ({Predecessor:} 6... Bd6 7. e4 Ne7 8. Bg2 c5 9. exd5 Nxd5 10. Ne4 Be7 11. c4 N5f6 12. Nxc5 Nxc5 13. dxc5 {1-0 (67) Janik,I (2525)-Van Foreest,L (2530) Warsaw 2021}) 7. exf3 {[%emt 0:01:50]} Qa5 {[%emt 0:02:25]} 8. a3 {[%emt 0:00:36] White is slightly better.} g6 {[%emt 0:01:15]} 9. f4 {[%emt 0:07:31]} Bg7 {[%emt 0:00:54]} 10. c3 {[%emt 0:07:51]} Ne7 {[%emt 0:02:59]} 11. Bd3 {[%emt 0:02:43]} c5 {[%emt 0:05:25][%cal Bc6c5,Bc5c4][%mdl 32]} 12. O-O {[%emt 0:13:36]} Qb6 {[%emt 0:02:40][%cal Rc5d4]} 13. Nf3 {[%emt 0:02:40]} c4 {[%emt 0:09:00]} 14. Bb1 {[%emt 0:07:17]} Qxb3 {[%emt 0:03:07]} 15. Qxb3 {[%emt 0:00:10]} cxb3 {[%emt 0:00:11]} 16. Nd2 {[%emt 0:01:50]} Nb6 {[%emt 0:00:30] aiming for ...Na4.} 17. Bd3 {[%emt 0:00:18]} Rc8 {[%emt 0:03:56] ...Nc4 is the strong threat.} 18. Nxb3 {[%emt 0:00:21]} (18. Bb5+ Kd8 19. a4 (19. Nxb3 $2 a6 $17) 19... Nc4 20. Bxc4 dxc4) 18... Nc4 {[%emt 0:01:17]} 19. Bc1 {[%emt 0:00:06]} Nf5 {[%emt 0:04:53]} 20. a4 {[%emt 0:06:42]} Nfd6 {[%emt 0:06:12]} 21. Re1 {[%emt 0:02:06]} O-O {[%emt 0:04:40]} 22. Re2 {[%emt 0:01:07]} Rfd8 {[%emt 0:03:08]} 23. Rc2 {[%emt 0:04:25]} Ne4 {[%emt 0:02:47]} 24. f3 {[%emt 0:03:29]} Ned6 {[%emt 0:00:07]} 25. Kf1 {[%emt 0:00:54]} Rc7 {[%emt 0:01:32]} 26. Ke2 {[%emt 0:01:08]} Rdc8 {[%emt 0:00:30]} 27. Raa2 {[%emt 0:00:38]} h5 {[%emt 0:02:16][%cal Bh7h5,Bh5h4][%mdl 32]} 28. Kd1 {[%emt 0:02:05]} Bf6 {[%emt 0:01:28]} 29. Ke2 {[%emt 0:00:16]} Kg7 {[%emt 0:00:11] Black is more active.} 30. Kd1 {[%emt 0:00:19]} h4 {[%emt 0:02:22]} 31. g4 {[%emt 0:00:28]} Bd8 {[%emt 0:01:27]} 32. Ke2 {[%emt 0:00:34]} Rc6 {[%emt 0:02:10]} (32... h3 {is interesting.} 33. Kf2 Bh4+ 34. Ke2 b6) 33. Ra1 {[%emt 0:04:00]} b6 {[%emt 0:02:51]} 34. h3 {[%emt 0:00:06]} f5 {[%emt 0:00:27]} 35. g5 {[%emt 0:00:50]} Kf7 {[%emt 0:00:31]} 36. Raa2 {[%emt 0:02:41]} Bc7 {[%emt 0:00:31]} 37. Ra1 {[%emt 0:00:33]} Nb7 {[%emt 0:02:30] Pair of Knights!} (37... Ne8 $17 {And now ...Ng7 would win.} 38. a5 Ng7 39. axb6 axb6) 38. Raa2 {[%emt 0:00:37]} Ke7 {[%emt 0:02:06]} 39. Kd1 {[%emt 0:03:28]} (39. Bxc4 $11 {remains equal.} Rxc4 40. Be3) 39... a5 {[%emt 0:02:24]} 40. Ra1 {[%emt 0:00:00]} Nbd6 {[%emt 0:00:00][%cal Bb7d6,Bd6e8,Be8g7][%mdl 32]} 41. Ke2 {[%emt 0:02:18] [#] Black keeps a firm grip on the game.} ({White should try} 41. Re2 $15) 41... Ne8 $1 $17 {[%emt 0:00:44]} 42. Kd1 {[%emt 0:15:38]} (42. Nd2 $17) 42... Ng7 $19 {[%emt 0:02:27]} 43. Bxc4 {[%emt 0:06:29]} dxc4 {[%emt 0:03:07]} 44. Nd2 {[%emt 0:00:25] [#]} ({Of course not} 44. Ba3+ Kf7 45. Nc1 Bxf4) 44... Nh5 $1 {[%emt 0:00:24]} (44... Bxf4 45. Nf1 Bxc1 46. Raxc1 $17) 45. Nf1 {[%emt 0:00:44]} Nxf4 {[%emt 0:00:55]} ({Stronger than} 45... Bxf4 46. Ne3 $17) 46. Bxf4 {[%emt 0:00:25]} Bxf4 {[%emt 0:00:16]} 47. Re2 {[%emt 0:00:44]} Bxg5 {[%emt 0:01:04]} 48. Kc2 {[%emt 0:00:47]} Kf6 {[%emt 0:00:59]} 49. Rb1 {[%emt 0:00:12]} Rd8 {[%emt 0:00:31]} 50. Ne3 {[%emt 0:00:24]} Bxe3 {[%emt 0:00:09]} 51. Rxe3 {[%emt 0:00:02][%mdl 4096] Endgame KRR-KRR} g5 {[%emt 0:00:24][%cal Bg6g5,Bg5f4][%mdl 32]} 52. Rg1 {[%emt 0:00:42]} Rd5 {[%emt 0:00:57]} 53. f4 {[%emt 0:01:01]} (53. Re2 {was worth a try.} b5 54. f4) 53... gxf4 {[%emt 0:01:12]} 54. Rf3 {[%emt 0:00:12]} e5 {[%emt 0:02:06]} 55. dxe5+ {[%emt 0:00:04]} Rxe5 {[%emt 0:00:06]} 56. Rxf4 {[%emt 0:00:05]} Re4 {[%emt 0:00:14]} 57. Rxe4 {[%emt 0:00:17]} (57. Rf2 $142 Rce6 58. Kd2) 57... fxe4 {[%emt 0:00:04][%cal Bf5e4,Be4e3][%mdl 32] KR-KR} 58. Rg4 {[%emt 0:00:05]} Kf5 {[%emt 0:00:18] ( -> ...Rg6)} 59. Rxh4 {[%emt 0:00:06]} Rd6 {[%emt 0:00:19] Black mates.} 60. Rh8 {[%emt 0:00:30]} e3 {[%emt 0:00:15]} 61. Re8 {[%emt 0:00:16]} Kf4 {[%emt 0:00:18]} 62. Rf8+ {[%emt 0:01:08]} Ke4 {[%emt 0:00:08]} 63. Re8+ {[%emt 0:00:11]} Kf3 {[%emt 0:00:07]} 64. Rf8+ {[%emt 0:00:06]} Ke2 {[%emt 0:00:05]} 65. Rf4 {[%emt 0:00:07]} Rd2+ {[%emt 0:00:20]} 66. Kc1 {[%emt 0:00:04]} Kd3 {[%emt 0:00:14]} 67. Rd4+ {[%emt 0:00:25]} Kxc3 {[%emt 0:00:07]} 68. Rxd2 {[%emt 0:00:03]} exd2+ {[%emt 0:00:07]} 69. Kd1 {[%emt 0:00:03]} Kd3 {[%emt 0:00:13]} 70. h4 {[%emt 0:00:07]} c3 {[%emt 0:00:04] Weighted Error Value: White=0.37/Black=0.09 (flawless)} 0-1

[Event "Croatian 1A League 2022"]
[Site "Porec"]
[Date "2022.10.01"]
[Round "8.10"]
[White "Antunac, Goran"]
[Black "Trbojevic, Mladen"]
[Result "1-0"]
[ECO "D92"]
[WhiteElo "2337"]
[BlackElo "2332"]
[Annotator "TA"]
[PlyCount "101"]
[EventDate "2022.09.24"]
[EventType "team-tourn"]
[EventCountry "CRO"]
[SourceTitle "playchess.com"]
[Source "ChessBase"]
[SourceQuality "1"]
[TimeControl "40/5400+30:1800+30"]

{[%evp 25,101,0,7,0,0,0,0,-2,4,-35,-7,-6,-6,-6,-9,-7,-5,-9,-21,-9,-18,-46,193,204,1252,1240,1131,1180,1026,454,1003,455,443,452,420,424,468,464,557,545,547,547,540,514,609,664,656,648,845,835,693,477,828,812,722,624,1272,1245,1064,1169,995,929,29974,29975,29987,29988,29988,29989,29989,29990,29990,29991,29991,29992,29992,29992,29992,29993]} 1. d4 {[%emt 0:00:04]} Nf6 {[%emt 0:00:17]} 2. Nf3 {[%emt 0:00:02]} g6 {[%emt 0:00:17]} 3. c4 {[%emt 0:00:35]} Bg7 {[%emt 0:00:13]} 4. Nc3 {[%emt 0:00:22]} d5 {[%emt 0:00:22]} 5. Bf4 {[%emt 0:00:24]} O-O {[%emt 0:00:29]} 6. Rc1 {[%emt 0:00:40]} dxc4 {[%emt 0:01:26]} 7. e3 {[%emt 0:04:47]} Be6 {[%emt 0:01:22]} 8. Ng5 {[%emt 0:01:45]} Bd5 {[%emt 0:00:56]} 9. e4 {[%emt 0:00:30]} h6 {[%emt 0:00:08]} 10. exd5 {[%emt 0:00:35]} hxg5 {[%emt 0:00:21]} 11. Bxg5 {[%emt 0:00:01]} Nxd5 {[%emt 0:00:34]} 12. Bxc4 {[%emt 0:05:31]} Nb6 {[%emt 0:03:51]} 13. Bb3 {[%emt 0:00:49]} Nc6 {[%emt 0:07:12]} 14. d5 {[%emt 0:02:24] D92: Grünfeld: 4 Nf3 Bg7 5 Bf4.} Nd4 {[%emt 0:00:31]} 15. O-O {[%emt 0:01:17]} Qd7 {[%emt 0:02:02]} 16. Re1 {[%emt 0:10:53] The position is equal.} Rfe8 {[%emt 0:00:25] [#]} 17. Bh4 $146 {[%emt 0:21:20]} ({Predecessor:} 17. h4 a5 18. a4 Nxb3 19. Qxb3 Bxc3 20. Rxc3 Nxd5 21. Rg3 Ra6 22. Re5 Rd6 23. Re4 {0-1 (57) Wang,H (2756)-Salgado Lopez,I (2605) Moscow 2019}) 17... Nxb3 {[%emt 0:21:41]} (17... a5 {is interesting.} 18. a3 Nxb3 19. Qxb3 a4) 18. Qxb3 {[%emt 0:01:06]} Bxc3 {[%emt 0:01:30]} 19. bxc3 {[%emt 0:01:18]} Qxd5 {[%emt 0:01:03]} 20. c4 {[%emt 0:11:26]} Qc5 {[%emt 0:06:41]} 21. Qf3 {[%emt 0:07:07]} c6 {[%emt 0:14:38]} ({Don't do} 21... Nxc4 22. Re4 b5 23. Rxe7 $1 $14) 22. Re4 {[%emt 0:01:08]} Rad8 {[%emt 0:13:10]} 23. Rce1 {[%emt 0:02:54][%cal Rh4e7]} Rd7 {[%emt 0:04:43] [#] Loses the game.} (23... Rd4 $15 {keeps the upper hand.} 24. Rxe7 Rxe7 25. Bxe7 Qa5) 24. Bf6 $1 $40 {[%emt 0:03:40][%mdl 192] Hoping for Rh4. Pin. White attacks with force.} Qf5 $2 {[%emt 0:15:38] [#]} (24... Qd6 25. Ba1 (25. Rh4 Qxf6 26. Qxf6 exf6 $16) 25... c5) 25. Qxf5 $1 {[%emt 0:02:04]} gxf5 {[%emt 0:00:02]} 26. Rh4 {[%emt 0:00:01][%csl Gf6][%cal Rh4h8]} exf6 {[%emt 0:00:24]} 27. Rxe8+ {[%emt 0:00:02][%mdl 4096] Endgame KRR-KRN} Kg7 {[%emt 0:00:04] ( -> ...Rd1+)} 28. g3 {[%emt 0:00:11]} (28. g4 $142 {Rhh8 would kill now.} Nc8 29. Rxc8 fxg4 30. Rxg4+ Kh7 31. Rcg8) 28... f4 {[%emt 0:02:13]} 29. Rg4+ {[%emt 0:00:10]} Kh7 {[%emt 0:00:17]} 30. Rxf4 {[%emt 0:00:04]} Kg7 {[%emt 0:00:34]} 31. Kg2 {[%emt 0:03:28]} Na4 {[%emt 0:01:39]} 32. Rg4+ {[%emt 0:02:38]} Kh7 {[%emt 0:00:02]} 33. Rge4 {[%emt 0:02:44]} Nc5 {[%emt 0:01:08]} 34. R4e7 {[%emt 0:00:42]} Rd2 {[%emt 0:00:32]} 35. Rxf7+ {[%emt 0:00:41]} Kg6 {[%emt 0:00:13]} 36. Rfe7 {[%emt 0:00:03]} Rxa2 {[%emt 0:00:50]} 37. h4 {[%emt 0:02:38][%cal Bh2h4,Bh4h5][%mdl 32]} Nd3 {[%emt 0:00:50]} 38. Re2 {[%emt 0:00:18]} Ra4 {[%emt 0:00:18]} (38... Rxe2 $142 39. Rxe2 a5) 39. Rg8+ {[%emt 0:02:33]} Kf7 {[%emt 0:00:34]} 40. Rb8 {[%emt 0:00:00] h5 is the strong threat.} Rb4 {[%emt 0:00:00]} 41. h5 {[%emt 0:02:25]} Ne5 {[%emt 0:16:06]} 42. f4 {[%emt 0:00:54]} Ng4 {[%emt 0:00:09]} 43. Kh3 {[%emt 0:00:44]} Nh6 {[%emt 0:00:48]} 44. Rc8 {[%emt 0:04:29] White mates.} Nf5 {[%emt 0:07:35]} 45. Rc7+ {[%emt 0:02:07]} Kf8 {[%emt 0:00:36]} 46. Re6 {[%emt 0:00:02]} Nd4 {[%emt 0:02:37]} 47. Rxf6+ {[%emt 0:00:04]} Ke8 {[%emt 0:00:14]} 48. h6 {[%emt 0:00:23]} Rb1 {[%emt 0:00:27]} 49. h7 {[%emt 0:00:38][%cal Rh7h8]} Rh1+ {[%emt 0:00:05]} 50. Kg4 {[%emt 0:00:06]} a5 {[%emt 0:00:47]} 51. Rg6 {[%emt 0:00:26] Weighted Error Value: White=0.28 (precise) /Black=0.46} 1-0

[Event "Croatian 1A League 2022"]
[Site "Porec"]
[Date "2022.10.01"]
[Round "8.11"]
[White "Krstic, Uros"]
[Black "Fucak, Emilio Milko"]
[Result "1-0"]
[ECO "C03"]
[WhiteElo "2323"]
[BlackElo "2187"]
[Annotator "TA"]
[PlyCount "109"]
[EventDate "2022.09.24"]
[EventType "team-tourn"]
[EventCountry "CRO"]
[SourceTitle "playchess.com"]
[Source "ChessBase"]
[SourceQuality "1"]
[TimeControl "40/5400+30:1800+30"]

{[%evp 9,109,10,8,12,11,14,27,7,11,2,20,0,0,0,16,0,43,34,83,82,80,90,83,89,72,51,74,80,82,76,66,82,88,81,76,67,105,98,91,97,107,106,109,92,116,95,177,50,46,46,46,46,47,37,49,37,80,40,89,86,97,93,79,68,66,60,68,60,63,51,58,73,165,109,292,277,250,222,444,422,2753,2274,12839,12839,12840,12840,12841,12840,12841,12841,12842,12842,12843,12843,12845,12845,12849,12849,27999,27999,27999,27999]} 1. e4 {[%emt 0:00:05]} e6 {[%emt 0:00:06]} 2. d4 {[%emt 0:00:06]} d5 {[%emt 0:00:04]} 3. Nd2 {[%emt 0:00:06]} Be7 {[%emt 0:00:09]} 4. c3 {[%emt 0:01:11]} c5 {[%emt 0:02:06]} 5. exd5 {[%emt 0:07:00]} exd5 {[%emt 0:03:38]} 6. dxc5 {[%emt 0:01:15] C03: French Tarrasch: Unusual Black 3rd moves.} Bxc5 {[%emt 0:00:49]} 7. Nb3 {[%emt 0:01:23]} Bb6 {[%emt 0:01:28]} 8. Bb5+ {[%emt 0:05:38] White has an edge.} Nc6 {[%emt 0:00:19]} 9. Nf3 {[%emt 0:00:40]} Qe7+ {[%emt 0:07:19]} 10. Be2 {[%emt 0:15:31]} Nf6 {[%emt 0:01:27]} 11. O-O {[%emt 0:00:33] [#]} Bg4 $146 {[%emt 0:02:16]} ({Predecessor:} 11... O-O 12. Bg5 Qd8 13. Bd3 Bg4 14. h3 Bh5 15. Re1 Qd6 16. Bh4 Bxf3 17. Qxf3 Ne5 {½-½ (33) Lau,R (2491)-Ganaus,H (2357) Austria 2002}) 12. Bg5 {[%emt 0:14:01]} O-O-O {[%emt 0:06:52]} 13. Nbd4 {[%emt 0:15:16]} Bxd4 {[%emt 0:21:01]} (13... Nxd4 $14 {should be considered.} 14. Nxd4 Bxe2 15. Nxe2 h6) 14. Nxd4 $16 {[%emt 0:11:33]} Bxe2 {[%emt 0:00:16]} 15. Nxe2 {[%emt 0:00:28]} ({Much weaker is} 15. Qxe2 Qxe2 16. Nxe2 Rhe8 $11) 15... h6 {[%emt 0:01:27]} 16. Be3 {[%emt 0:10:41]} Ng4 {[%emt 0:11:29]} 17. Bd4 {[%emt 0:00:43]} (17. Bf4 $5 {[%cal Re2d4]}) 17... Qh4 {[%emt 0:07:00][%csl Gg4][%cal Rh4h2]} 18. h3 {[%emt 0:00:29]} Nge5 {[%emt 0:01:10]} 19. Bxe5 {[%emt 0:03:21]} Nxe5 {[%emt 0:00:07]} 20. Nd4 {[%emt 0:00:08]} Nc6 {[%emt 0:02:37]} 21. Nxc6 {[%emt 0:03:41]} bxc6 {[%emt 0:00:14]} 22. Re1 {[%emt 0:01:36][%cal Oc3c4]} Rd7 {[%emt 0:11:14]} 23. Qf3 {[%emt 0:01:09]} Rhd8 {[%emt 0:01:19]} 24. Rad1 {[%emt 0:00:21]} Qc4 {[%emt 0:04:03]} 25. b3 {[%emt 0:01:11]} Qa6 {[%emt 0:00:32]} 26. Rd2 {[%emt 0:00:31]} g6 {[%emt 0:00:57]} 27. Qf6 {[%emt 0:01:01]} h5 {[%emt 0:01:23]} (27... Qb6 $16) 28. Re7 {[%emt 0:00:34]} (28. Rde2 $1 $18) 28... Rxe7 $14 {[%emt 0:03:53]} 29. Qxe7 {[%emt 0:00:03][%mdl 4096] Endgame KQR-KQR} Qb7 {[%emt 0:00:10]} 30. Qe3 {[%emt 0:00:29]} Qd7 {[%emt 0:00:54]} 31. Re2 {[%emt 0:00:13]} Kb8 {[%emt 0:03:55]} 32. Qf4+ {[%emt 0:00:26]} Ka8 {[%emt 0:01:21]} 33. Qe5 {[%emt 0:01:06] White is more active.} d4 {[%emt 0:00:23]} (33... Kb7 $14) 34. cxd4 {[%emt 0:00:52]} Qxd4 {[%emt 0:00:02]} 35. Qxd4 {[%emt 0:00:43]} Rxd4 $16 {[%emt 0:00:01] KR-KR} 36. Re8+ {[%emt 0:00:07]} (36. Re7 $5 {[%cal Re7f7]}) 36... Kb7 {[%emt 0:00:06]} 37. Re7+ {[%emt 0:00:01]} Kb6 {[%emt 0:00:07]} 38. Rxf7 {[%emt 0:00:03]} Rd2 {[%emt 0:02:06]} 39. Rf6 {[%emt 0:02:33]} Rxa2 {[%emt 0:02:42]} 40. Rxg6 {[%emt 0:00:00]} Rb2 {[%emt 0:00:00]} (40... a5 $16) 41. Rg3 $1 $18 {[%emt 0:03:35] Rd3 is the strong threat.} a5 $2 {[%emt 0:06:17] [#] Black cannot hold the game after this.} (41... Rb1+ $16 42. Kh2 h4) 42. Re3 $1 {[%emt 0:06:26]} h4 {[%emt 0:10:27]} 43. f4 {[%emt 0:08:15][%cal Bf2f4,Bf4f5,Bf5f6][%mdl 32] And now f5 would win.} Kc5 $2 {[%emt 0:02:49] [#]} (43... Rd2 {is a better defense.} 44. f5 Kc7) 44. f5 $1 {[%emt 0:08:42] Black must now prevent f6.} Kd4 {[%emt 0:02:31]} (44... Rd2 $142 45. Re4 Kd5 46. Rxh4 Ke5) 45. Rf3 {[%emt 0:00:54] Intending f6 and mate.} Rb1+ {[%emt 0:02:57]} 46. Kh2 {[%emt 0:00:56]} Re1 {[%emt 0:00:43]} 47. f6 {[%emt 0:02:34] Threatening mate with f7.} Re8 {[%emt 0:00:07]} 48. g4 {[%emt 0:00:33] White wants to mate with f7.} hxg3+ {[%emt 0:00:24]} 49. Kxg3 {[%emt 0:00:00]} Rf8 {[%emt 0:01:14]} 50. Kg4 {[%emt 0:00:51]} Ke5 {[%emt 0:00:07]} 51. Kg5 {[%emt 0:00:36]} Ke6 {[%emt 0:00:17]} 52. f7 {[%emt 0:02:14]} Rxf7 {[%emt 0:01:26]} 53. Rxf7 {[%emt 0:00:01]} Kxf7 {[%emt 0:00:02]} 54. Kf5 {[%emt 0:00:08]} c5 {[%emt 0:00:21]} 55. Ke5 {[%emt 0:00:16] Weighted Error Value: White=0.11 (very precise) /Black=0.34} 1-0

[Event "Croatian 1A League 2022"]
[Site "Porec"]
[Date "2022.10.01"]
[Round "8.12"]
[White "Medancic, Rikard"]
[Black "Vernacki, Srdjan"]
[Result "1/2-1/2"]
[ECO "A46"]
[WhiteElo "2120"]
[BlackElo "2280"]
[Annotator "TA"]
[PlyCount "95"]
[EventDate "2022.09.24"]
[EventType "team-tourn"]
[EventCountry "CRO"]
[SourceTitle "playchess.com"]
[Source "ChessBase"]
[SourceQuality "1"]
[TimeControl "40/5400+30:1800+30"]

{[%evp 9,95,4,5,0,0,0,0,0,7,0,15,0,7,-2,19,-10,-2,-35,-12,-9,-7,-10,-13,-11,-11,-6,0,0,-7,-2,-4,-14,-9,-15,0,-14,-14,-32,-14,-8,0,-23,0,0,12,0,16,20,17,0,0,0,0,0,0,0,0,0,0,0,0,0,0,0,0,0,0,0,0,-6,-6,-9,0,-8,-3,-11,-16,-17,0,-12,0,0,0,0,4,0,0,0]} 1. d4 {[%emt 0:00:12]} Nf6 {[%emt 0:00:06]} 2. Nf3 {[%emt 0:00:13]} e6 {[%emt 0:00:06]} 3. Bg5 {[%emt 0:00:49]} h6 {[%emt 0:00:16]} 4. Bxf6 {[%emt 0:03:10]} Qxf6 {[%emt 0:00:05]} 5. c3 {[%emt 0:00:24]} g6 {[%emt 0:00:41]} 6. Nbd2 {[%emt 0:00:15] A46: 1 d4 Nf6 2 Nf3 e6: Torre, London and Colle Systems.} Bg7 {[%emt 0:00:14]} 7. e4 {[%emt 0:00:47]} Qe7 {[%emt 0:01:38]} 8. Bd3 {[%emt 0:01:56]} d6 {[%emt 0:01:29]} 9. O-O {[%emt 0:09:51]} e5 {[%emt 0:01:11]} 10. dxe5 {[%emt 0:00:23]} dxe5 {[%emt 0:00:19]} 11. a4 {[%emt 0:02:07]} O-O {[%emt 0:00:30] [#]} 12. Re1 $146 {[%emt 0:02:06]} ({Predecessor:} 12. Qc2 Nd7 13. Rfe1 Nc5 14. Bf1 a5 15. Nb3 Be6 16. Nxc5 Qxc5 17. Rad1 Qb6 18. Nd2 {0-1 (50) Drakopoulos,A (2182)-Karagiannis,A (2388) Athens 2005}) 12... Nd7 {[%emt 0:03:02]} 13. Qb3 {[%emt 0:06:30]} Nc5 {[%emt 0:10:21]} 14. Qa3 {[%emt 0:00:19]} Re8 {[%emt 0:00:30]} 15. Bf1 {[%emt 0:03:29]} Bd7 {[%emt 0:09:44]} 16. a5 {[%emt 0:05:11]} Rad8 {[%emt 0:04:30]} 17. Nb3 {[%emt 0:06:47]} Nxb3 {[%emt 0:13:22]} 18. Qxb3 {[%emt 0:00:12]} Bc8 {[%emt 0:00:23]} 19. Red1 {[%emt 0:02:30]} c6 {[%emt 0:02:22]} 20. Be2 {[%emt 0:05:20]} Qc7 {[%emt 0:04:59]} 21. Qc2 {[%emt 0:01:04]} h5 {[%emt 0:02:15]} 22. h3 {[%emt 0:01:24]} Bh6 {[%emt 0:01:26]} 23. Nd2 {[%emt 0:02:19]} Bxd2 {[%emt 0:03:30]} 24. Rxd2 {[%emt 0:01:03]} Kg7 {[%emt 0:04:11]} 25. b4 {[%emt 0:10:30]} Rxd2 {[%emt 0:01:45]} 26. Qxd2 {[%emt 0:00:12] The position is equal.} Rd8 {[%emt 0:01:05]} 27. Qe3 {[%emt 0:00:29]} b6 {[%emt 0:03:49]} 28. axb6 {[%emt 0:02:05]} (28. Qg5 {feels hotter.} Rh8 29. axb6 axb6 30. Bc4) 28... axb6 {[%emt 0:00:30]} 29. h4 {[%emt 0:04:30]} (29. Qg5 {keeps more tension.} Rh8 30. Bc4 Bb7 31. Rd1) 29... Be6 {[%emt 0:02:12]} 30. g3 {[%emt 0:03:55]} c5 {[%emt 0:05:41]} 31. bxc5 {[%emt 0:03:57]} bxc5 {[%emt 0:00:15]} 32. Kg2 {[%emt 0:00:35]} Rb8 {[%emt 0:05:30]} 33. Qd2 {[%emt 0:06:04]} Qc6 {[%emt 0:02:36]} 34. Qe3 {[%emt 0:00:37]} Qc7 {[%emt 0:09:27]} 35. Qd2 {[%emt 0:00:49]} Rd8 {[%emt 0:01:41]} 36. Qe3 {[%emt 0:00:16]} Qb6 {[%emt 0:00:56]} 37. Rd1 {[%emt 0:08:28]} Ra8 {[%emt 0:03:02]} 38. Rd2 {[%emt 0:02:11]} Qc7 {[%emt 0:01:42]} 39. Rd1 {[%emt 0:00:54]} Qe7 {[%emt 0:00:38]} 40. Rb1 {[%emt 0:00:00]} (40. Rd2 {is more complex.} Ra1 41. Rb2 Kh7 42. Qd2) 40... Qc7 {[%emt 0:00:00]} 41. Rd1 {[%emt 0:04:18]} Qc6 {[%emt 0:06:50]} 42. Rd2 {[%emt 0:01:29]} Ra4 {[%emt 0:04:08]} 43. Bf3 {[%emt 0:01:37]} Ra8 {[%emt 0:06:38]} 44. Rd1 {[%emt 0:00:34]} Rc8 {[%emt 0:02:06]} 45. Rd2 {[%emt 0:00:28]} Bb3 {[%emt 0:02:45]} 46. Rb2 {[%emt 0:00:44]} Qe6 {[%emt 0:00:41]} 47. Rd2 {[%emt 0:00:21]} Bc4 {[%emt 0:00:52]} 48. Rd1 {[%emt 0:04:51] A rather calm draw.  Weighted Error Value: White=0.05 (flawless) /Black=0.04 (flawless)} 1/2-1/2